fUST/lending_fUST_20240530
["ID","MTS","AMOUNT","RATE_DAILY","PERIOD"]
[328178934,1717012241324,-539.79317363,0.00020028,2]
[328178935,1717012241334,-500.0,0.00020028,2]
[328178936,1717012241343,-500.0,0.00020028,2]
[328178937,1717012241353,-20339.72426671,0.00020031,2]
[328178938,1717012241364,-475.07465496,0.00020031,2]
[328178939,1717012241376,-8830.67715057,0.00020031,2]
[328178940,1717012241388,-151.0,0.00020031,2]
[328178941,1717012241397,-151.0,0.00020031,2]
[328178942,1717012241408,-151.0,0.00020031,2]
[328178943,1717012241418,-151.0,0.00020031,2]
[328178944,1717012241427,-151.0,0.00020031,2]
[328178945,1717012241436,-476.385496,0.00020031,2]
[328178946,1717012241445,-476.385496,0.00020031,2]
[328178947,1717012241455,-151.0,0.00020031,2]
[328178948,1717012241465,-284.378695,0.00020031,2]
[328178949,1717012241476,-151.0,0.00020031,2]
[328178950,1717012241485,-151.0,0.00020031,2]
[328178951,1717012241496,-225.98895,0.00020031,2]
[328178952,1717012241506,-151.0,0.00020031,2]
[328178953,1717012241516,-151.0,0.00020031,2]
[328178954,1717012241527,-151.0,0.00020031,2]
[328178955,1717012241537,-4228.46577223,0.0002055,2]
[328178956,1717012241548,-994.73195716,0.00020709,2]
[328178957,1717012241556,-151.0,0.00020906,2]
[328178958,1717012241566,-151.0,0.00020906,2]
[328178959,1717012241575,-151.0,0.00020906,2]
[328178960,1717012241584,-448.267299,0.00020906,2]
[328178961,1717012241592,-448.267299,0.00020906,2]
[328178962,1717012241601,-151.0,0.00020906,2]
[328178963,1717012241611,-151.0,0.00020906,2]
[328178964,1717012241619,-151.0,0.00020906,2]
[328178965,1717012241628,-151.0,0.00020906,2]
[328178966,1717012241638,-202.39342,0.00020906,2]
[328178967,1717012241647,-202.39342,0.00020906,2]
[328178968,1717012241656,-78.80093727,0.00020909,2]
[328178969,1717012241667,-151.97326421,0.00020909,2]
[328178970,1717012241676,-943.78957024,0.0002091,2]
[328178971,1717012241686,-2568.55836387,0.00020911,2]
[328178972,1717012241695,-26663.02735702,0.00020911,2]
[328178973,1717012241704,-155.4042196,0.00020911,2]
[328178974,1717012241713,-270.06099238,0.00020911,2]
[328178975,1717012241722,-1280.85326046,0.00020911,2]
[328178976,1717012241732,-187.39912452,0.00020911,2]
[328178977,1717012241741,-427.25130369,0.00020911,2]
[328178978,1717012241751,-155.70818563,0.00020911,2]
[328178979,1717012241760,-162.68825562,0.00020911,2]
[328178980,1717012241770,-2005.8334935,0.00020911,2]
[328178981,1717012241779,-155.44196189,0.00020911,2]
[328178982,1717012241788,-151.0,0.00020911,2]
[328178983,1717012241797,-158.503592,0.00020911,2]
[328178984,1717012241806,-152.226573,0.00020911,2]
[328178985,1717012241815,-151.0,0.00020911,2]
[328178986,1717012241825,-151.0,0.00020911,2]
[328178987,1717012241835,-151.0,0.00020911,2]
[328178988,1717012241846,-151.0,0.00020911,2]
[328178989,1717012241856,-151.0,0.00020911,2]
[328178990,1717012241866,-196.577453,0.00020911,2]
[328178991,1717012241875,-196.577453,0.00020911,2]
[328178992,1717012241885,-151.0,0.00020911,2]
[328178993,1717012241894,-151.0,0.00020911,2]
[328178994,1717012241904,-186.138551,0.00020911,2]
[328178995,1717012241915,-186.138551,0.00020911,2]
[328178996,1717012241924,-151.0,0.00020911,2]
[328178997,1717012241933,-151.0,0.00020911,2]
[328178998,1717012241943,-151.0,0.00020911,2]
[328178999,1717012241951,-151.174463,0.00020911,2]
[328179000,1717012241961,-151.0,0.00020911,2]
[328179001,1717012241970,-263.226867,0.00020911,2]
[328179002,1717012241979,-263.226867,0.00020911,2]
[328179003,1717012241988,-151.0,0.00020911,2]
[328179004,1717012241997,-146.87730924,0.00020911,2]
[328179053,1717012243415,-4.12269076,0.00020911,2]
[328179054,1717012243424,-178.657854,0.00020911,2]
[328179055,1717012243433,-448.267299,0.00020911,2]
[328179056,1717012243443,-151.0,0.00020911,2]
[328179057,1717012243452,-448.267299,0.00020911,2]
[328179058,1717012243462,-151.0,0.00020911,2]
[328179059,1717012243471,-151.0,0.00020911,2]
[328179061,1717012243481,-151.0,0.00020911,2]
[328179063,1717012243491,-202.39342,0.00020911,2]
[328179065,1717012243500,-202.39342,0.00020911,2]
[328179067,1717012243509,-151.0,0.00020911,2]
[328179068,1717012243518,-151.0,0.00020911,2]
[328179069,1717012243528,-257.992779,0.00020911,2]
[328179070,1717012243537,-151.0,0.00020911,2]
[328179071,1717012243547,-476.385496,0.00020911,2]
[328179072,1717012243556,-476.385496,0.00020911,2]
[328179074,1717012243565,-151.0,0.00020911,2]
[328179076,1717012243575,-151.0,0.00020911,2]
[328179078,1717012243584,-254.121874,0.00020911,2]
[328179079,1717012243593,-151.0,0.00020911,2]
[328179080,1717012243602,-151.0,0.00020911,2]
[328179081,1717012243611,-151.0,0.00020911,2]
[328179082,1717012243621,-1575.8352734,0.00020912,7]
[328179083,1717012243630,-1377.08791877,0.00020912,7]
[328179084,1717012243639,-194.76510677,0.00020912,2]
[328179085,1717012243649,-1351.67298204,0.00020912,2]
[328179086,1717012243658,-530.520944,0.00020912,2]
[328179087,1717012243771,-155.4335701,0.00020912,2]
[328179088,1717012243780,-29109.65427986,0.00020912,2]
[328179089,1717012243792,-12900.19720116,0.00020912,2]
[328179090,1717012243802,-151.0,0.00020912,2]
[328179091,1717012243812,-151.0,0.00020912,2]
[328179092,1717012243821,-151.0,0.00020912,2]
[328179093,1717012243831,-151.0,0.00020912,2]
[328179094,1717012243840,-151.0,0.00020912,2]
[328179095,1717012243850,-151.0,0.00020912,2]
[328179096,1717012243859,-196.577453,0.00020912,2]
[328179097,1717012243869,-196.577453,0.00020912,2]
[328179098,1717012243878,-151.0,0.00020912,2]
[328179099,1717012243887,-196.377185,0.00020912,2]
[328179100,1717012243896,-186.138551,0.00020912,2]
[328179101,1717012243906,-186.138551,0.00020912,2]
[328179102,1717012243915,-191.710611,0.00020912,2]
[328179103,1717012243924,-151.0,0.00020912,2]
[328179104,1717012243933,-151.0,0.00020912,2]
[328179105,1717012243943,-263.226867,0.00020912,2]
[328179106,1717012243953,-263.226867,0.00020912,2]
[328179107,1717012243962,-151.0,0.00020912,2]
[328179108,1717012243972,-151.0,0.00020912,2]
[328179109,1717012243981,-448.267299,0.00020912,2]
[328179110,1717012243991,-151.0,0.00020912,2]
[328179111,1717012243999,-448.267299,0.00020912,2]
[328179112,1717012244009,-151.0,0.00020912,2]
[328179113,1717012244018,-151.0,0.00020912,2]
[328179114,1717012244027,-151.0,0.00020912,2]
[328179115,1717012244037,-202.39342,0.00020912,2]
[328179116,1717012244046,-202.39342,0.00020912,2]
[328179117,1717012244055,-151.0,0.00020912,2]
[328179118,1717012244064,-206.466269,0.00020912,2]
[328179119,1717012244074,-476.385496,0.00020912,2]
[328179120,1717012244083,-476.385496,0.00020912,2]
[328179121,1717012244093,-151.0,0.00020912,2]
[328179122,1717012244103,-151.0,0.00020912,2]
[328179123,1717012244112,-151.0,0.00020912,2]
[328179124,1717012244121,-15880.25743922,0.00020913,2]
[328179125,1717012244131,-151.0,0.00020913,2]
[328179126,1717012244140,-151.0,0.00020913,2]
[328179127,1717012244149,-151.0,0.00020913,2]
[328179128,1717012244159,-151.0,0.00020913,2]
[328179129,1717012244169,-196.577453,0.00020913,2]
[328179130,1717012244178,-196.577453,0.00020913,2]
[328179131,1717012244187,-151.0,0.00020913,2]
[328179132,1717012244197,-186.138551,0.00020913,2]
[328179133,1717012244207,-186.138551,0.00020913,2]
[328179134,1717012244216,-151.0,0.00020913,2]
[328179135,1717012244225,-151.0,0.00020913,2]
[328179136,1717012244234,-263.226867,0.00020913,2]
[328179137,1717012244243,-263.226867,0.00020913,2]
[328179138,1717012244252,-151.0,0.00020913,2]
[328179139,1717012244261,-151.0,0.00020913,2]
[328179140,1717012244270,-448.267299,0.00020913,2]
[328179141,1717012244279,-151.0,0.00020913,2]
[328179142,1717012244289,-448.267299,0.00020913,2]
[328179143,1717012244298,-151.0,0.00020913,2]
[328179144,1717012244311,-151.0,0.00020913,2]
[328179145,1717012244322,-151.0,0.00020913,2]
[328179146,1717012244331,-202.39342,0.00020913,2]
[328179147,1717012244341,-202.39342,0.00020913,2]
[328179148,1717012244352,-476.385496,0.00020913,2]
[328179149,1717012244362,-476.385496,0.00020913,2]
[328179150,1717012244373,-151.0,0.00020913,2]
[328179151,1717012244385,-151.0,0.00020913,2]
[328179152,1717012244394,-244.734675,0.00020913,2]
[328179153,1717012244404,-192.98571482,0.00021,2]
[328179154,1717012244413,-151.0,0.00021125,2]
[328179155,1717012244424,-151.0,0.00021125,2]
[328179156,1717012244433,-186.36730217,0.00021125,2]
[328179157,1717012244442,-151.0,0.00021918,2]
[328179158,1717012244451,-151.0,0.00021918,2]
[328179159,1717012244462,-158.89909,0.00021918,2]
[328179160,1717012244472,-151.0,0.00021918,2]
[328179161,1717012244481,-196.773525,0.00021918,2]
[328179162,1717012244490,-196.773525,0.00021918,2]
[328179163,1717012244500,-196.773525,0.00021918,2]
[328179164,1717012244509,-196.773525,0.00021918,2]
[328179165,1717012244518,-196.773525,0.00021918,2]
[328179166,1717012244527,-196.773525,0.00021918,2]
[328179167,1717012244536,-196.773525,0.00021918,2]
[328179168,1717012244547,-196.773525,0.00021918,2]
[328179169,1717012244556,-166.666666,0.00021918,2]
[328179170,1717012244565,-994.73195713,0.00022286,2]
[328179171,1717012244575,-166.666666,0.00022431,2]
[328179172,1717012244584,-166.666666,0.00022944,2]
[328179173,1717012244594,-4697.14874934,0.00023,2]
[328179174,1717012244603,-309.72125088,0.00023,2]
[328179175,1717012244612,-166.666666,0.00023456,2]
[328179176,1717012244621,-994.73195713,0.00023863,2]
[328179177,1717012244630,-166.666666,0.00023969,2]
[328179178,1717012244639,-200.0,0.0002411,2]
[328179179,1717012244648,-175.766181,0.00024384,2]
[328179180,1717012244657,-750.0,0.00024384,2]
[328179181,1717012244667,-166.666666,0.00024482,2]
[328179182,1717012244676,-1008.26745931,0.00024657,2]
[328179183,1717012244685,-2688.65594462,0.00024957,2]
[328179184,1717012244695,-151.0,0.00024957,2]
[328179185,1717012244704,-151.0,0.00024957,2]
[328179186,1717012244714,-196.577453,0.00024957,2]
[328179187,1717012244723,-196.577453,0.00024957,2]
[328179188,1717012244732,-151.0,0.00024957,2]
[328179189,1717012244741,-186.138551,0.00024957,2]
[328179190,1717012244750,-186.138551,0.00024957,2]
[328179191,1717012244759,-151.0,0.00024957,2]
[328179192,1717012244768,-263.226867,0.00024957,2]
[328179193,1717012244777,-263.226867,0.00024957,2]
[328179194,1717012244786,-151.0,0.00024957,2]
[328179195,1717012244795,-151.0,0.00024957,2]
[328179196,1717012244804,-448.267299,0.00024957,2]
[328179197,1717012244813,-151.0,0.00024957,2]
[328179198,1717012244822,-448.267299,0.00024957,2]
[328179199,1717012244831,-151.0,0.00024957,2]
[328179200,1717012244841,-151.0,0.00024957,2]
[328179201,1717012244850,-151.0,0.00024957,2]
[328179202,1717012244859,-202.39342,0.00024957,2]
[328179203,1717012244868,-202.39342,0.00024957,2]
[328179204,1717012244878,-196.773525,0.00024957,2]
[328179205,1717012244887,-196.773525,0.00024957,2]
[328179206,1717012244896,-476.385496,0.00024957,2]
[328179207,1717012244906,-476.385496,0.00024957,2]
[328179208,1717012244915,-151.0,0.00024957,2]
[328179209,1717012244924,-151.0,0.00024957,2]
[328179210,1717012244933,-151.0,0.00024968,2]
[328179211,1717012244943,-151.0,0.00024968,2]
[328179212,1717012244952,-151.0,0.00024968,2]
[328179213,1717012244961,-4506.43400628,0.00025,2]
[328179229,1717012246286,-18368.50120533,0.00025,2]
[328179230,1717012246296,-402.27306873,0.00025,2]
[328179231,1717012246308,-151.0,0.00025,2]
[328179232,1717012246318,-151.0,0.00025,2]
[328179233,1717012246326,-151.0,0.00025,2]
[328179234,1717012246335,-212.740154,0.00025,2]
[328179235,1717012246344,-196.577453,0.00025,2]
[328179236,1717012246354,-196.577453,0.00025,2]
[328179237,1717012246363,-213.638904,0.00025,2]
[328179238,1717012246372,-186.138551,0.00025,2]
[328179239,1717012246382,-186.138551,0.00025,2]
[328179240,1717012246393,-151.0,0.00025,2]
[328179241,1717012246402,-263.226867,0.00025,2]
[328179242,1717012246412,-263.226867,0.00025,2]
[328179243,1717012246421,-151.0,0.00025,2]
[328179244,1717012246430,-151.0,0.00025,2]
[328179245,1717012246440,-448.267299,0.00025,2]
[328179246,1717012246448,-151.0,0.00025,2]
[328179247,1717012246458,-448.267299,0.00025,2]
[328179248,1717012246467,-151.0,0.00025,2]
[328179249,1717012246476,-151.0,0.00025,2]
[328179250,1717012246485,-151.0,0.00025,2]
[328179251,1717012246496,-202.39342,0.00025,2]
[328179252,1717012246505,-202.39342,0.00025,2]
[328179253,1717012246515,-196.773525,0.00025,2]
[328179254,1717012246524,-196.773525,0.00025,2]
[328179255,1717012246533,-476.385496,0.00025,2]
[328179256,1717012246542,-476.385496,0.00025,2]
[328179257,1717012246552,-151.0,0.00025,2]
[328179258,1717012246561,-151.0,0.00025,2]
[328179259,1717012246570,-994.73195713,0.0002544,2]
[328179260,1717012246579,-1028.98975604,0.000256,2]
[328179261,1717012246588,-498.112,0.00026438,2]
[328179262,1717012246597,-152.695,0.00026438,2]
[328179263,1717012246606,-177.094,0.00026438,2]
[328179264,1717012246615,-353.68270008,0.00026497,2]
[328179265,1717012246624,-1000.0,0.000265,2]
[328179266,1717012246633,-1192.426459,0.000265,2]
[328179267,1717012246642,-1621.043132,0.000265,2]
[328179268,1717012246651,-167.95191227,0.00026504,2]
[328179269,1717012246661,-150.5289609,0.00026531,2]
[328179270,1717012246670,-761.53155768,0.000266,2]
[328179271,1717012246679,-7013.97315236,0.000268,2]
[328179272,1717012246689,-282.0,0.000268,2]
[328179273,1717012246698,-151.0,0.000268,2]
[328179274,1717012246707,-151.0,0.000268,2]
[328179275,1717012246716,-151.0,0.000268,2]
[328179276,1717012246726,-196.577453,0.000268,2]
[328179277,1717012246735,-196.577453,0.000268,2]
[328179278,1717012246745,-186.138551,0.000268,2]
[328179279,1717012246754,-186.138551,0.000268,2]
[328179280,1717012246763,-151.0,0.000268,2]
[328179281,1717012246771,-263.226867,0.000268,2]
[328179282,1717012246780,-263.226867,0.000268,2]
[328179283,1717012246790,-151.0,0.000268,2]
[328179284,1717012246799,-151.0,0.000268,2]
[328179285,1717012246808,-448.267299,0.000268,2]
[328179286,1717012246817,-151.0,0.000268,2]
[328179287,1717012246826,-448.267299,0.000268,2]
[328179288,1717012246835,-213.91226,0.000268,2]
[328179289,1717012246844,-151.0,0.000268,2]
[328179290,1717012246853,-151.0,0.000268,2]
[328179291,1717012246862,-202.39342,0.000268,2]
[328179292,1717012246871,-202.39342,0.000268,2]
[328179293,1717012246880,-196.773525,0.000268,2]
[328179294,1717012246889,-196.773525,0.000268,2]
[328179295,1717012246898,-476.385496,0.000268,2]
[328179296,1717012246908,-476.385496,0.000268,2]
[328179297,1717012246918,-151.0,0.000268,2]
[328179298,1717012246927,-151.0,0.000268,2]
[328179299,1717012246936,-167.95191227,0.00026832,2]
[328179300,1717012246946,-353.68270008,0.00026949,2]
[328179301,1717012246955,-1000.0,0.00027,2]
[328179302,1717012246964,-4242.30926626,0.00027017,2]
[328179303,1717012246973,-994.73195713,0.00027017,2]
[328179304,1717012246982,-353.68270008,0.00027065,2]
[328179305,1717012246992,-167.95191227,0.00027065,2]
[328179306,1717012247001,-40678.53925682,0.00027117,2]
[328179307,1717012247011,-151.0,0.00027117,2]
[328179308,1717012247112,-151.0,0.00027117,2]
[328179309,1717012247122,-151.0,0.00027117,2]
[328179310,1717012247131,-196.577453,0.00027117,2]
[328179311,1717012247141,-196.577453,0.00027117,2]
[328179312,1717012247150,-186.138551,0.00027117,2]
[328179313,1717012247159,-186.138551,0.00027117,2]
[328179314,1717012247168,-246.16509,0.00027117,2]
[328179315,1717012247177,-263.226867,0.00027117,2]
[328179316,1717012247187,-263.226867,0.00027117,2]
[328179317,1717012247196,-151.0,0.00027117,2]
[328179318,1717012247205,-151.0,0.00027117,2]
[328179319,1717012247214,-448.267299,0.00027117,2]
[328179320,1717012247223,-151.0,0.00027117,2]
[328179321,1717012247232,-448.267299,0.00027117,2]
[328179322,1717012247242,-151.0,0.00027117,2]
[328179323,1717012247251,-286.809954,0.00027117,2]
[328179324,1717012247261,-202.39342,0.00027117,2]
[328179325,1717012247270,-202.39342,0.00027117,2]
[328179326,1717012247279,-196.773525,0.00027117,2]
[328179327,1717012247288,-196.773525,0.00027117,2]
[328179328,1717012247299,-476.385496,0.00027117,2]
[328179329,1717012247313,-476.385496,0.00027117,2]
[328179330,1717012247322,-169.894246,0.00027117,2]
[328179331,1717012247331,-151.0,0.00027117,2]
[328179332,1717012247340,-167.95191227,0.00027222,2]
[328179333,1717012247351,-353.68270008,0.00027275,2]
[328179334,1717012247361,-167.95191227,0.00027346,2]
[328179335,1717012247370,-556.81200124,0.00027368,2]
[328179336,1717012247382,-500.0,0.00027397,2]
[328179337,1717012247391,-229.75886987,0.00027397,2]
[328179338,1717012247400,-500.0,0.00027397,2]
[328179339,1717012247409,-500.0,0.00027397,2]
[328179340,1717012247419,-185.47700865,0.00027397,2]
[328179341,1717012247428,-500.0,0.00027397,2]
[328179342,1717012247437,-500.0,0.00027397,2]
[328179343,1717012247447,-500.0,0.00027397,2]
[328179344,1717012247455,-500.0,0.00027397,2]
[328179345,1717012247465,-500.0,0.00027397,2]
[328179346,1717012247474,-604.8736595,0.00027397,2]
[328179347,1717012247483,-152.59,0.000274,3]
[328179348,1717012247492,-152.59,0.000274,3]
[328179349,1717012247501,-152.59,0.000274,3]
[328179350,1717012247510,-152.59,0.000274,3]
[328179351,1717012247519,-152.59,0.000274,3]
[328179352,1717012247528,-152.59,0.000274,3]
[328179353,1717012247537,-152.59,0.000274,3]
[328179354,1717012247546,-152.59,0.000274,3]
[328179355,1717012247556,-7814.21769155,0.000275,2]
[328179356,1717012247565,-151.0,0.000275,2]
[328179357,1717012247575,-151.0,0.000275,2]
[328179358,1717012247584,-151.0,0.000275,2]
[328179359,1717012247593,-196.577453,0.000275,2]
[328179360,1717012247603,-196.577453,0.000275,2]
[328179361,1717012247612,-186.138551,0.000275,2]
[328179362,1717012247621,-186.138551,0.000275,2]
[328179363,1717012247630,-263.226867,0.000275,2]
[328179364,1717012247639,-263.226867,0.000275,2]
[328179365,1717012247649,-151.0,0.000275,2]
[328179366,1717012247658,-151.0,0.000275,2]
[328179367,1717012247667,-448.267299,0.000275,2]
[328179368,1717012247676,-151.0,0.000275,2]
[328179369,1717012247685,-448.267299,0.000275,2]
[328179370,1717012247695,-151.0,0.000275,2]
[328179371,1717012247705,-202.39342,0.000275,2]
[328179372,1717012247714,-202.39342,0.000275,2]
[328179373,1717012247723,-196.773525,0.000275,2]
[328179374,1717012247732,-196.773525,0.000275,2]
[328179375,1717012247741,-476.385496,0.000275,2]
[328179376,1717012247750,-476.385496,0.000275,2]
[328179377,1717012247759,-151.0,0.000275,2]
[328179378,1717012247768,-1000.0,0.000275,2]
[328179379,1717012247777,-167.95191227,0.00027663,2]
[328179380,1717012247786,-353.68270008,0.00027935,2]
[328179381,1717012247795,-167.95191227,0.00027973,2]
[328179382,1717012247805,-221.89275894,0.00028,2]
[328179383,1717012247815,-167.95191227,0.00028062,2]
[328179384,1717012247825,-167.95191227,0.00028364,2]
[328179385,1717012247834,-151.0,0.00028396,7]
[328179386,1717012247843,-353.68270008,0.00028414,2]
[328179387,1717012247852,-153.02842269,0.00028583,2]
[328179388,1717012247861,-353.68270008,0.00028997,2]
[328179389,1717012247870,-353.68270008,0.00029045,2]
[328179390,1717012247879,-2000.0,0.000291,2]
[328179391,1717012247888,-353.68270008,0.00029155,2]
[328179392,1717012247897,-167.95191227,0.00029157,2]
[328179393,1717012247906,-152.59,0.000292,3]
[328179394,1717012247916,-152.59,0.000292,3]
[328179395,1717012247925,-152.59,0.000292,3]
[328179396,1717012247935,-152.59,0.000292,3]
[328179397,1717012247944,-152.59,0.000292,3]
[328179398,1717012247953,-152.59,0.000292,3]
[328179399,1717012247962,-152.59,0.000292,3]
[328179400,1717012247971,-152.59,0.000292,3]
[328179401,1717012247981,-353.68270008,0.00029269,2]
[328179402,1717012247990,-497.0,0.00029438,2]
[328179403,1717012247999,-353.68270008,0.00029475,2]
[328179404,1717012248009,-353.68270008,0.00029604,2]
[328179405,1717012248018,-167.95191227,0.00029709,2]
[328179406,1717012248027,-151.0,0.00029717,7]
[328179407,1717012248037,-353.68270008,0.00029805,2]
[328179408,1717012248046,-167.95191227,0.00029828,2]
[328179409,1717012248056,-167.95191227,0.00029896,2]
[328179410,1717012248065,-600.0,0.000299,2]
[328179411,1717012248074,-151.0,0.000299,2]
[328179412,1717012248083,-229.2911,0.000299,2]
[328179413,1717012248092,-151.0,0.000299,2]
[328179414,1717012248101,-196.577453,0.000299,2]
[328179415,1717012248110,-196.577453,0.000299,2]
[328179416,1717012248119,-186.138551,0.000299,2]
[328179417,1717012248129,-186.138551,0.000299,2]
[328179418,1717012248138,-263.226867,0.000299,2]
[328179419,1717012248147,-263.226867,0.000299,2]
[328179420,1717012248156,-178.632372,0.000299,2]
[328179421,1717012248165,-151.0,0.000299,2]
[328179422,1717012248174,-448.267299,0.000299,2]
[328179423,1717012248183,-151.0,0.000299,2]
[328179424,1717012248192,-448.26730085,0.000299,2]
[328179425,1717012248201,-151.0,0.000299,2]
[328179426,1717012248211,-167.95191227,0.000299,2]
[328179427,1717012248221,-202.39342,0.000299,2]
[328179428,1717012248230,-202.393414,0.000299,2]
[328179429,1717012248240,-196.773525,0.000299,2]
[328179430,1717012248249,-196.773525,0.000299,2]
[328179431,1717012248259,-476.385496,0.000299,2]
[328179432,1717012248269,-476.385488,0.000299,2]
[328179433,1717012248278,-151.0,0.000299,2]
[328179434,1717012248287,-167.95191227,0.00029915,2]
[328179435,1717012248297,-49032.75300822,0.0003,4]
[328179436,1717012248310,-10312.51767806,0.0003,2]
[328179446,1717013241111,-177.02,0.00015,2]
[328179450,1717013352092,-1137.98739382,0.0001,2]
[328179461,1717013414350,459.54675454,0.0001,2]
[328179481,1717013432504,-1103.44676135,0.0001,2]
[328179483,1717013432516,-2072.76346295,0.0001,2]
[328179484,1717013432526,-22.64653705,0.0001485,2]
[328179485,1717013432573,-132.22956207,0.0001485,2]
[328179486,1717013432582,-379.14331368,0.00014977,2]
[328179487,1717013432591,-1098.62540245,0.00018899,2]
[328179488,1717013432601,-815.75036512,0.000189,2]
[328179489,1717013432611,-154.87609912,0.00019969,2]
[328179490,1717013432619,-6816.75446757,0.00019971,2]
[328179491,1717013432631,-585.86709831,0.00019971,2]
[328179492,1717013432641,-5155.8,0.00019971,2]
[328179542,1717013438465,-1148.725005,0.00019971,2]
[328179544,1717013438477,-1089.4560012,0.00019971,2]
[328179551,1717013438526,-10103.39742792,0.00019971,2]
[328179554,1717013438535,-194.0753606,0.0002,2]
[328179557,1717013438543,-155.67240172,0.00020026,2]
[328179560,1717013438552,-155.11627612,0.00020026,2]
[328179563,1717013438561,-155.38635448,0.00020026,2]
[328179565,1717013438571,-269.43312445,0.00020026,2]
[328179567,1717013438581,-155.30913095,0.00020026,2]
[328179568,1717013438590,-278.24594851,0.00020026,2]
[328179569,1717013438599,-155.17279527,0.00020026,2]
[328179570,1717013438608,-223.35933546,0.00020026,2]
[328179571,1717013438617,-442.75883193,0.00020026,2]
[328179572,1717013438625,-155.38446914,0.00020026,2]
[328179573,1717013438634,-155.17961982,0.00020026,2]
[328179574,1717013438643,-721.20812959,0.00020027,2]
[328179575,1717013438652,-231.08206128,0.00020912,2]
[328179576,1717013438661,-154.92253873,0.00020912,2]
[328179577,1717013438669,-154.92253873,0.00020912,2]
[328179578,1717013438678,-2402.75654892,0.00020913,2]
[328179579,1717013438687,-166.666666,0.00021918,2]
[328179581,1717013438700,-166.666666,0.00022431,2]
[328179582,1717013438715,-166.666666,0.00022944,2]
[328179583,1717013438724,-166.666666,0.00023456,2]
[328179584,1717013438734,-815.75036512,0.000239,2]
[328179585,1717013438743,-166.666666,0.00023969,2]
[328179586,1717013438754,-175.766181,0.00024384,2]
[328179587,1717013438763,-712.5,0.00024384,2]
[328179588,1717013438772,-166.666666,0.00024482,2]
[328179589,1717013438783,-17875.35709488,0.00025,2]
[328179718,1717014550140,-1236.3424559,0.0001,2]
[328179719,1717014550160,-169.83100091,0.000136,2]
[328179721,1717014585162,154.87609912,9.999e-05,2]
[328179722,1717014590566,922.4720001,0.00014,2]
[328179742,1717014632014,-271.91678837,0.000189,2]
[328179743,1717014632023,-1098.62540245,0.00022846,2]
[328179744,1717014632032,-173.721763,0.00022849,2]
[328179745,1717014632042,-921.92867486,0.00023748,2]
[328179746,1717014632053,-173.721763,0.00023887,2]
[328179747,1717014632064,-271.91678837,0.000239,2]
[328179748,1717014632073,-175.766181,0.00024384,2]
[328179749,1717014632082,-676.875,0.00024384,2]
[328179750,1717014632092,-164.793736,0.00024431,2]
[328179751,1717014632102,-173.721763,0.00024925,2]
[328179752,1717014632111,-241.41908299,0.00024998,2]
[328179753,1717014632121,-513.00528364,0.00024998,2]
[328179754,1717014632132,-155.19382331,0.00024998,2]
[328179755,1717014632141,-187.84892888,0.00024998,2]
[328179756,1717014632150,-7914.23511678,0.00024998,2]
[328179757,1717014632159,-155.01553865,0.00024998,2]
[328179758,1717014632169,-230.77420148,0.00024998,2]
[328179759,1717014632178,-200.93271159,0.00024999,2]
[328179760,1717014632187,-3983.82636158,0.00025,2]